bitfinex-derivatives/quotes_BNBF0:USTF0_20251010
["timestamp","ask_amount","ask_price","bid_price","bid_amount"]
[1760113315715,0.14190789,1227.1,1225.9,0.51620469]
[1760113315913,0.14190789,1227.1,1226.0,0.51620469]
[1760113316216,0.14190789,1227.1,1226.1,0.51620469]
[1760113316514,0.14190789,1227.1,1225.5,0.59587446]
[1760113316713,0.14190789,1227.1,1225.6,0.51490341]
[1760113317016,0.14190789,1227.1,1225.7,0.51490341]
[1760113317213,0.14190789,1227.1,1225.3,0.59587446]
[1760113317516,0.14190789,1227.1,1225.4,0.5151117]
[1760113317715,0.14190789,1227.1,1225.5,0.5151117]
[1760113317914,0.14190789,1227.1,1225.6,0.5151117]
[1760113318112,0.14190789,1227.1,1225.7,0.5151117]
[1760113318310,0.14190789,1227.1,1225.3,0.59587446]
[1760113318515,0.14190789,1227.1,1225.4,0.51500123]
[1760113318713,0.14190789,1227.1,1225.5,0.51500123]
[1760113318915,0.14190789,1227.1,1225.6,0.51500123]
[1760113319117,0.14190789,1227.1,1225.7,0.51500123]
[1760113319315,0.14190789,1227.1,1225.3,0.59587446]
[1760113319515,0.14190789,1227.1,1225.4,0.5148835]
[1760113319718,0.14190789,1227.1,1225.5,0.5148835]
[1760113319919,0.14190789,1227.1,1225.6,0.5148835]
[1760113320118,0.14190789,1227.1,1225.7,0.5148835]
[1760113320415,0.14190789,1227.1,1225.2,1.37287446]
[1760113320614,0.14190789,1227.1,1225.3,0.51594811]
[1760113320915,0.14190789,1227.1,1225.4,0.51594811]
[1760113321217,0.14190789,1227.1,1225.5,0.51594811]
[1760113321418,0.14190789,1227.1,1225.7,0.59587446]
[1760113321613,0.14190789,1227.1,1225.8,0.51594811]
[1760113321918,0.14190789,1227.1,1225.9,0.51594811]
[1760113322115,0.14190789,1227.1,1226.0,0.51594811]
[1760113322313,0.14190789,1227.1,1226.1,0.51594811]
[1760113322513,0.14190789,1227.1,1226.2,0.51594811]
[1760113322715,0.14190789,1227.1,1225.6,0.59587446]
[1760113322918,0.14190789,1227.1,1225.7,0.5146007]
[1760113323115,0.14190789,1227.1,1225.8,0.5146007]
[1760113323319,0.14190789,1227.1,1225.9,0.5146007]
[1760113323516,0.14190789,1227.1,1226.0,0.5146007]
[1760113323715,0.14190789,1227.1,1226.1,0.5146007]
[1760113323920,0.14190789,1227.1,1225.6,0.59587446]
[1760113324120,0.14190789,1227.1,1225.2,1.57624839]
[1760113324121,0.14190789,1227.1,1225.7,0.51523018]
[1760113324416,0.14190789,1227.1,1225.2,1.37287446]
[1760113324716,0.14190789,1227.1,1225.3,0.51541004]
[1760113325017,0.14190789,1227.1,1225.4,0.51541004]
[1760113325216,0.14190789,1227.1,1225.5,0.51541004]
[1760113325416,0.14190789,1227.1,1225.6,0.51544872]
[1760113325616,0.14190789,1227.1,1225.7,0.51544872]
[1760113325819,0.14190789,1227.1,1225.8,0.51544872]
[1760113326022,0.14190789,1227.1,1225.2,1.37287446]
[1760113326220,0.14190789,1227.1,1225.3,0.51511732]
[1760113326417,0.14190789,1227.1,1225.4,0.51511732]
[1760113326616,0.14190789,1227.1,1225.5,0.51511732]
[1760113326821,0.14190789,1227.1,1225.6,0.51511732]
[1760113327121,0.14190789,1227.1,1225.7,0.51511732]
[1760113327320,0.14190789,1227.1,1225.2,1.37287446]
[1760113327517,0.14190789,1227.1,1225.3,0.51567536]
[1760113327820,0.14190789,1227.1,1225.4,0.51567536]
[1760113328016,0.14190789,1227.1,1225.5,0.51567536]
[1760113328220,0.14190789,1227.1,1225.6,0.51567536]
[1760113328420,0.14190789,1227.1,1225.7,0.51567536]
[1760113328620,0.14190789,1227.1,1225.3,0.59587446]
[1760113328818,0.14190789,1227.1,1225.4,0.51646717]
[1760113329018,0.14190789,1227.1,1225.5,0.51646717]
[1760113329218,0.14190789,1227.1,1225.6,0.51646717]
[1760113329420,0.14190789,1227.1,1225.7,0.51646717]
[1760113329618,0.14190789,1227.1,1225.3,0.59587446]
[1760113329824,0.14190789,1227.1,1225.4,0.51688705]
[1760113330120,0.14190789,1227.1,1225.5,0.51688705]
[1760113330319,0.14190789,1227.1,1225.6,0.51688705]
[1760113330620,0.14190789,1227.1,1225.7,0.51688705]
[1760113330824,0.14190789,1227.1,1225.8,0.51688705]
[1760113331124,0.14190789,1227.1,1225.9,0.51688705]
[1760113331324,0.14190789,1227.1,1226.0,0.51688705]
[1760113331525,0.14190789,1227.1,1225.3,0.59587446]
[1760113331725,0.14190789,1227.1,1225.4,0.51738807]
[1760113331922,0.14190789,1227.1,1225.5,0.51738807]
[1760113332126,0.14190789,1227.1,1225.6,0.51738807]
[1760113332323,0.14190789,1227.1,1225.7,0.51738807]
[1760113332527,0.14190789,1227.1,1225.8,0.51738807]
[1760113332726,0.14190789,1227.1,1225.9,0.51738807]
[1760113332926,0.14190789,1227.1,1226.0,0.51738807]
[1760113333122,0.14190789,1227.1,1226.1,0.51738807]
[1760113333326,0.14190789,1227.1,1226.2,0.51738807]
[1760113333621,0.14190789,1227.1,1225.6,0.59587446]
[1760113333821,0.14190789,1227.1,1225.5,1.064]
[1760113333822,0.14190789,1227.1,1225.7,1.11334436]
[1760113334026,0.14190789,1227.1,1225.8,0.5174699]
[1760113334223,0.14190789,1227.1,1225.9,0.5174699]
[1760113334427,0.14190789,1227.1,1226.0,0.5174699]
[1760113334722,0.14190789,1227.1,1226.1,0.5174699]
[1760113334926,0.14190789,1227.1,1225.7,0.59587446]
[1760113335124,0.14190789,1227.1,1225.8,0.51832287]
[1760113335325,0.14190789,1227.1,1225.9,0.51832287]
[1760113335526,0.14190789,1227.1,1226.0,0.51832287]
[1760113335731,0.14190789,1227.1,1226.1,0.51832287]
[1760113335924,0.14190789,1227.1,1226.2,0.51832287]
[1760113336128,0.14190789,1227.1,1226.3,0.51832287]
[1760113336324,0.14190789,1227.1,1226.4,0.51832287]
[1760113336628,0.14190789,1227.1,1226.5,0.51832287]
[1760113336825,0.14190789,1227.1,1226.6,0.51832287]
[1760113337030,0.14190789,1227.1,1226.0,0.59587446]
[1760113337226,0.14190789,1227.1,1226.1,1.11464423]
[1760113337428,0.14190789,1227.1,1226.2,0.51876977]
[1760113337626,0.14190789,1227.1,1226.3,0.51876977]
[1760113337930,0.14190789,1227.1,1226.5,0.59587446]
[1760113338127,0.14190789,1227.1,1226.6,0.51876977]
[1760113338330,0.14190789,1227.1,1226.7,0.51876977]
[1760113338527,0.14190789,1227.1,1226.8,0.51876977]
[1760113338730,1.1930497,1230.5,1226.9,0.51876977]
[1760113338928,1.1930497,1230.5,1227.0,0.51876977]
[1760113339127,0.14168083,1227.3,1227.1,0.51876977]
[1760113339333,1.1930497,1230.5,1226.5,0.59587446]
[1760113339530,0.14166411,1227.4,1226.6,0.51832568]
[1760113339730,0.14166411,1227.4,1226.7,0.51832568]
[1760113339933,1.1930497,1230.5,1226.8,0.51832568]
[1760113340134,0.14168314,1227.3,1226.9,0.51832568]
[1760113340429,1.1930497,1230.3,1227.0,0.51832568]
[1760113340630,1.1930497,1230.3,1227.1,0.51832568]
[1760113340933,0.14167852,1227.4,1226.6,0.59587446]
[1760113341233,0.14168429,1229.6,1226.7,0.51837444]
[1760113341530,0.14168429,1229.6,1226.8,0.51837444]
[1760113341729,0.14168429,1229.6,1226.9,0.51837444]
[1760113341932,0.14168429,1229.6,1227.0,0.51837444]
[1760113342128,0.14168429,1229.6,1227.1,0.51837444]
[1760113342333,0.14168429,1229.6,1227.2,0.51837444]
[1760113342533,0.14168429,1229.6,1226.7,0.59587446]
[1760113342733,0.14168429,1229.6,1226.8,0.51754281]
[1760113343033,0.14168429,1229.6,1226.9,0.51754281]
[1760113343234,0.14168429,1229.6,1227.0,0.51754281]
[1760113343433,0.14168429,1229.6,1227.1,0.51754281]
[1760113343635,0.14168429,1229.6,1227.2,0.51754281]
[1760113343933,0.14168429,1229.6,1227.3,0.51754281]
[1760113344135,0.14168429,1229.6,1227.4,0.51754281]
[1760113344330,0.14168429,1229.6,1227.5,0.51754281]
[1760113344529,0.14168429,1229.6,1226.8,0.59587446]
[1760113344738,0.14168429,1229.6,1226.9,0.51692704]
[1760113344928,0.14168429,1229.6,1227.0,0.51692704]
[1760113345135,0.14168429,1229.6,1227.1,0.51692704]
[1760113345432,0.14168429,1229.6,1227.2,0.51692704]
[1760113345733,0.14168429,1229.6,1227.3,0.51692704]
[1760113345930,0.14168429,1229.6,1227.4,0.51692704]
[1760113346130,0.14168429,1229.6,1226.7,0.59587446]
[1760113346333,0.14168429,1229.6,1226.8,0.51628789]
[1760113346633,0.14168429,1229.6,1226.9,0.51628789]
[1760113346830,0.14168429,1229.6,1227.0,0.51628789]
[1760113347030,0.14168429,1229.6,1227.1,0.51628789]
[1760113347228,0.14168429,1229.6,1227.2,0.51628789]
[1760113347432,0.14168429,1229.6,1226.7,0.59587446]
[1760113347433,0.14168429,1229.6,1227.3,0.51628789]
[1760113347628,0.14168429,1229.6,1226.9,0.59587446]
[1760113347830,0.14168429,1229.6,1227.0,0.51709558]
[1760113348033,0.14168429,1229.6,1227.1,0.51709558]
[1760113348330,0.14168429,1229.6,1227.2,0.51709558]
[1760113348629,0.14168429,1229.6,1227.3,0.51709558]
[1760113348933,0.14168429,1229.6,1227.4,0.51709558]
[1760113349133,0.14168429,1229.6,1227.5,0.51709558]
[1760113349430,0.14168429,1229.6,1227.6,0.51760111]
[1760113349633,0.14168429,1229.6,1227.0,0.59587446]
[1760113349929,0.14168429,1229.6,1227.1,1.11345706]
[1760113350130,0.14168429,1229.6,1227.2,0.5175826]
[1760113350330,0.14168429,1229.6,1226.7,0.79924839]
[1760113350331,0.14168429,1229.6,1227.3,0.5175826]
[1760113350530,0.14168429,1229.6,1227.4,0.5175826]
[1760113350734,0.14168429,1229.6,1227.5,0.5175826]
[1760113350934,0.14168429,1229.6,1227.1,0.59587446]
[1760113351232,0.14168429,1229.6,1227.2,0.5170768]
[1760113351429,0.14168429,1229.6,1227.3,0.5170768]
[1760113351631,0.14168429,1229.6,1227.4,0.5170768]
[1760113351831,0.14168429,1229.6,1226.4,0.59587446]
[1760113352031,0.14168429,1229.6,1226.6,0.59587446]
[1760113352236,0.14168429,1229.6,1226.7,0.51713535]
[1760113352430,0.14168429,1229.6,1226.8,0.51713535]
[1760113352634,0.14168429,1229.6,1226.9,0.51713535]
[1760113352834,0.14168429,1229.6,1227.0,0.51713535]
[1760113353033,0.14168429,1229.6,1227.1,0.51713535]
[1760113353235,0.14168429,1229.6,1226.5,0.59587446]
[1760113353429,0.14168429,1229.6,1225.9,1.1988725]
[1760113353430,0.14168429,1229.6,1226.6,1.11386655]
[1760113353632,0.14168429,1229.6,1226.7,0.51799209]
[1760113353830,0.14168429,1229.6,1226.8,0.51799209]
[1760113354032,0.14168429,1229.6,1226.9,0.51799209]
[1760113354235,0.14168429,1229.6,1226.5,0.59587446]
[1760113354435,0.14168429,1229.6,1226.6,0.52141969]
[1760113354632,0.14168429,1229.6,1226.7,0.52141969]
[1760113354837,0.14168429,1229.6,1226.8,0.52141969]
[1760113355037,0.14168429,1229.6,1226.6,0.59587446]
[1760113355038,0.14168429,1229.6,1226.9,0.52141969]
[1760113355238,0.14168429,1229.6,1227.0,0.52141969]
[1760113355538,0.14168429,1229.6,1226.6,0.59587446]
[1760113355835,0.14168429,1229.6,1226.1,0.59587446]
[1760113356134,0.14168429,1229.6,1226.2,0.52212693]
[1760113356338,1.33473399,1229.6,1226.3,0.52212693]
[1760113356539,1.33473399,1229.6,1225.9,0.59587446]
[1760113356836,0.14168429,1229.6,1226.0,0.52223069]
[1760113357033,0.14168429,1229.6,1226.1,0.52223069]
[1760113357235,0.14168429,1229.6,1225.8,0.59587446]
[1760113357236,0.14168429,1229.6,1226.2,0.52223069]
[1760113357436,0.14168429,1229.6,1226.3,0.52223069]
[1760113357635,0.14168429,1229.6,1226.4,0.52223069]
[1760113357939,0.14168429,1229.6,1226.5,0.52223069]
[1760113358136,0.14168429,1229.6,1225.9,0.59587446]
[1760113358340,0.14168429,1229.6,1225.5,1.86324839]
[1760113358635,0.14168429,1229.6,1225.9,0.59065663]
[1760113358838,0.14168429,1229.6,1226.0,0.52240925]
[1760113359037,0.14168429,1229.6,1226.1,0.52240925]
[1760113359236,0.14168429,1229.6,1226.2,0.52240925]
[1760113359436,1.1930497,1229.5,1226.3,0.52240925]
[1760113359636,1.1930497,1229.4,1225.8,0.59065663]
[1760113359840,1.1930497,1229.4,1225.9,1.11395782]
[1760113360044,1.1930497,1229.5,1226.0,0.52330119]
[1760113360244,1.1930497,1229.5,1226.1,0.52330119]
[1760113360445,1.1930497,1229.4,1226.2,0.52330119]
[1760113360646,1.1930497,1229.4,1226.3,0.52330119]
[1760113360844,1.1930497,1229.5,1225.8,0.59065663]
[1760113361044,1.33473399,1229.6,1225.9,0.52352924]
[1760113361245,1.1930497,1229.4,1226.0,0.52352924]
[1760113361444,1.1930497,1229.0,1225.6,0.59065663]
[1760113361643,1.1930497,1229.1,1225.7,0.52421596]
[1760113361844,1.1930497,1229.1,1225.8,0.52421596]
[1760113362045,1.1930497,1229.1,1225.9,0.52421596]
[1760113362249,1.1930497,1229.1,1226.0,0.52421596]
[1760113362450,1.1930497,1229.0,1225.7,1.008]
[1760113362647,1.1930497,1229.0,1225.8,0.52454115]
[1760113362846,1.1930497,1229.0,1225.9,0.52454115]
[1760113363045,1.1930497,1229.0,1225.7,1.008]
[1760113363345,1.1930497,1228.9,1225.8,0.52450109]
[1760113363549,1.1930497,1229.0,1225.9,0.52450109]
[1760113363850,1.1930497,1229.4,1226.0,0.52450109]
[1760113364146,1.1930497,1229.2,1226.1,0.52450109]
[1760113364350,1.1930497,1229.2,1226.2,0.52443356]
[1760113364550,1.1930497,1229.2,1225.7,1.59865663]
[1760113364748,1.1930497,1229.2,1225.8,1.11521919]
[1760113364948,1.1930497,1229.2,1225.9,0.52456256]
[1760113365145,1.1930497,1229.2,1226.0,0.52456256]
[1760113365347,1.1930497,1229.1,1226.1,0.52456256]
[1760113365551,1.1930497,1229.1,1226.2,0.52456256]
[1760113365852,1.1930497,1229.2,1226.3,0.52456256]
[1760113366153,1.1930497,1229.4,1226.4,0.52460586]
[1760113366452,1.1930497,1229.3,1226.5,0.52460586]
[1760113366653,1.1930497,1229.3,1226.1,0.59065663]
[1760113366850,0.14168429,1229.6,1226.1,0.59065663]
[1760113366851,1.1930497,1229.2,1226.2,0.52484606]
[1760113367047,1.1930497,1229.2,1226.3,0.52484606]
[1760113367250,0.14168429,1229.6,1226.4,0.52484606]
[1760113367450,0.14168429,1229.6,1226.5,0.52484606]
[1760113367752,0.14168429,1229.6,1226.6,0.52484606]
[1760113367948,0.14168429,1229.6,1226.7,0.52484606]
[1760113368149,0.14168429,1229.6,1226.8,0.52484606]
[1760113368348,0.14168429,1229.6,1226.2,0.59065663]
[1760113368548,0.14168429,1229.6,1226.3,0.52497448]
[1760113368753,0.14168429,1229.6,1226.4,0.52497448]
[1760113368953,0.14168429,1229.6,1226.5,0.52497448]
[1760113369151,0.14168429,1229.6,1226.6,0.52497448]
[1760113369356,0.14168429,1229.6,1226.7,0.52497448]
[1760113369556,0.14168429,1229.6,1226.8,0.52497448]
[1760113369756,0.14168429,1229.6,1226.9,0.52497448]
[1760113370052,0.14168429,1229.6,1226.3,0.59065663]
[1760113370252,0.14168429,1229.6,1226.4,0.52514028]
[1760113370556,0.14168429,1229.6,1226.5,0.52514028]
[1760113370856,0.14168429,1229.6,1226.6,0.52514028]
[1760113371053,0.14168429,1229.6,1226.7,0.52514028]
[1760113371355,1.33473399,1229.6,1226.8,0.52514028]
[1760113371556,1.33473399,1229.6,1226.9,0.52514028]
[1760113371754,1.33473399,1229.6,1226.3,0.59065663]
[1760113371951,0.14168429,1229.6,1226.4,1.11516681]
[1760113372150,0.14168429,1229.6,1226.5,0.52451018]
[1760113372356,1.33473399,1229.6,1226.6,0.52451018]
[1760113372658,1.1930497,1229.5,1226.7,0.52451018]
[1760113372859,0.14168429,1229.6,1226.8,0.52451018]
[1760113373154,0.14168429,1229.6,1226.9,0.52451018]
[1760113373355,0.14168429,1229.6,1227.0,0.52451018]
[1760113373656,0.14168429,1229.6,1227.1,0.52451018]
[1760113373857,0.14168429,1229.6,1226.6,0.59065663]
[1760113374056,0.14168429,1229.6,1226.7,0.52435669]
[1760113374254,0.14168429,1229.6,1226.8,0.52435669]
[1760113374454,0.14168429,1229.6,1226.9,0.52435669]
[1760113374753,0.14168429,1229.6,1227.0,0.52435669]
[1760113374953,0.14168429,1229.6,1227.1,0.52435669]
[1760113375157,0.14168429,1229.6,1227.2,0.52435669]
[1760113375354,0.14168429,1229.6,1227.3,0.52435669]
[1760113375653,0.14168429,1229.6,1226.7,0.59065663]
[1760113375857,0.14168429,1229.6,1226.8,0.52387748]
[1760113376053,0.14168429,1229.6,1226.9,0.52387748]
[1760113376258,0.14168429,1229.6,1227.0,0.52387748]
[1760113376459,0.14168429,1229.6,1227.1,0.52387748]
[1760113376760,0.14168429,1229.6,1227.2,0.52387748]
[1760113376959,0.14168429,1229.6,1227.3,0.52387748]
[1760113377161,0.14168429,1229.6,1227.4,0.52387748]
[1760113377360,0.14168429,1229.6,1226.7,0.59065663]
[1760113377661,0.14168429,1229.6,1226.8,0.52425977]
[1760113377860,0.14168429,1229.6,1226.9,0.52425977]
[1760113378160,0.14168429,1229.6,1227.0,0.52425977]
[1760113378460,0.14168429,1229.6,1227.1,0.52425977]
[1760113378660,0.14168429,1229.6,1227.2,0.52425977]
[1760113378857,0.14168429,1229.6,1227.3,0.52425977]
[1760113379061,0.14168429,1229.6,1227.2,0.657]
[1760113379358,0.14168429,1229.6,1227.3,0.52415125]
[1760113379561,0.14168429,1229.6,1227.2,0.657]
[1760113379757,0.14168429,1229.6,1227.3,0.52411557]
[1760113379961,0.14168429,1229.6,1227.2,0.657]
[1760113380256,0.14168429,1229.6,1227.3,0.52417099]
[1760113380461,0.14168429,1229.6,1227.2,0.657]
[1760113380761,0.14168429,1229.6,1227.3,0.52382622]
[1760113380959,0.14168429,1229.6,1227.2,0.657]
[1760113381162,0.14168429,1229.6,1227.3,0.52412793]
[1760113381361,0.14168429,1229.6,1227.2,0.657]
[1760113381559,0.14168429,1229.6,1227.3,0.52452739]
[1760113381760,0.14168429,1229.6,1227.2,0.657]
[1760113381960,0.14168429,1229.6,1227.3,0.52451016]
[1760113382163,0.14168429,1229.6,1227.2,0.657]
[1760113382462,0.14168429,1229.6,1227.3,0.52470244]
[1760113382662,0.14168429,1229.6,1227.2,0.657]
[1760113382962,0.14168429,1229.6,1227.3,0.52495225]
[1760113383163,0.14168429,1229.6,1227.2,0.657]
[1760113383363,0.14168429,1229.6,1227.3,0.52486152]
[1760113383563,0.14168429,1229.6,1227.4,0.52486152]
[1760113383760,0.14168429,1229.6,1227.2,0.657]
[1760113383964,0.14168429,1229.6,1227.3,0.52419183]
[1760113384160,0.14168429,1229.6,1227.4,0.52419183]
[1760113384363,0.14168429,1229.6,1227.5,0.52419183]
[1760113384562,0.14168429,1229.6,1227.6,0.52419183]
[1760113384765,0.14168429,1229.6,1227.2,0.657]
[1760113384964,0.14168429,1229.6,1227.3,0.52400755]
[1760113385162,0.14168429,1229.6,1227.4,0.52400755]
[1760113385365,0.14168429,1229.6,1227.5,0.52400755]
[1760113385561,0.14168429,1229.6,1227.6,0.52400755]
[1760113385862,0.14168429,1229.6,1227.2,0.657]
[1760113386062,0.14168429,1229.6,1227.3,0.52361028]
[1760113386261,0.14168429,1229.6,1227.4,0.52361028]
[1760113386466,0.14168429,1229.6,1227.5,0.52361028]
[1760113386664,0.14168429,1229.6,1227.6,0.52361028]
[1760113386866,0.14168429,1229.6,1227.7,0.52361028]
[1760113387065,0.14168429,1229.6,1227.8,0.52361028]
[1760113387263,0.14168429,1229.6,1227.8,0.656]
[1760113388067,0.14168429,1229.6,1227.9,0.52348452]
[1760113388267,0.14168429,1229.6,1228.0,0.52348452]
[1760113388567,0.14168429,1229.6,1227.8,0.656]
[1760113388863,0.14168429,1229.6,1227.9,0.52308288]
[1760113389163,0.14168429,1229.6,1228.0,0.52308288]
[1760113389367,0.14168429,1229.6,1228.1,0.52308288]
[1760113389566,0.14168429,1229.6,1227.8,0.656]
[1760113389762,0.14168429,1229.6,1227.9,0.52217569]
[1760113390068,0.14168429,1229.6,1228.0,0.52217569]
[1760113390367,0.14168429,1229.6,1228.1,0.52217569]
[1760113390567,0.14168429,1229.6,1228.2,0.52217569]
[1760113390767,0.14168429,1229.6,1228.3,0.52217569]
[1760113391067,0.14168429,1229.6,1227.8,1.24665663]
[1760113391268,0.14168429,1229.6,1227.9,0.52274732]
[1760113391568,0.14168429,1229.6,1228.0,0.52274732]
[1760113391865,0.14168429,1229.6,1228.1,0.52274732]
[1760113392068,0.14168429,1229.6,1228.2,0.52274732]
[1760113392368,0.14168429,1229.6,1228.3,0.52274732]
[1760113392569,0.14168429,1229.6,1227.8,1.24665663]
[1760113392768,0.14168429,1229.6,1227.9,0.52300685]
[1760113392970,0.14168429,1229.6,1228.0,0.52300685]
[1760113393270,0.14168429,1229.6,1228.1,0.52300685]
[1760113393469,0.14168429,1229.6,1228.2,0.52300685]
[1760113393670,0.14168429,1229.6,1228.3,0.52300685]
[1760113393967,0.14168429,1229.6,1227.8,1.24665663]
[1760113394166,0.14168429,1229.6,1227.9,0.52275662]
[1760113394372,0.14168429,1229.6,1228.4,0.59065663]
[1760113394667,0.14168429,1229.6,1228.5,0.52275662]
[1760113394867,0.14168429,1229.6,1228.6,0.52275662]
[1760113395170,0.14168429,1229.6,1228.7,0.52275662]
[1760113395368,0.14168429,1229.6,1228.8,0.52275662]
[1760113395670,0.14168429,1229.6,1228.9,0.52275662]
[1760113395872,0.14168429,1229.6,1229.0,0.52275662]
[1760113396067,0.14168429,1229.6,1228.4,0.59065663]
[1760113396272,0.14168429,1229.6,1228.5,0.52148464]
[1760113396567,0.14168429,1229.6,1228.6,0.52148464]
[1760113396773,0.14168429,1229.6,1228.7,0.52148464]
[1760113396970,0.14168429,1229.6,1228.8,0.52148464]
[1760113397173,0.14168429,1229.6,1228.9,0.52148464]
[1760113397473,0.14168429,1229.6,1228.3,0.59065663]
[1760113397675,0.14168429,1229.6,1228.4,1.11144216]
[1760113397871,0.14168429,1229.6,1228.5,0.52078553]
[1760113398072,0.14168429,1229.6,1228.6,0.52078553]
[1760113398372,0.14168429,1229.6,1228.7,0.52078553]
[1760113398576,0.14168429,1229.6,1228.8,0.52078553]
[1760113398778,0.14168429,1229.6,1228.9,0.52078553]
[1760113398978,0.14168429,1229.6,1229.0,0.52078553]
[1760113399171,0.14168429,1229.6,1228.3,0.59065663]
[1760113399371,0.14168429,1229.6,1228.7,0.59065663]
[1760113399573,0.14168429,1229.6,1228.8,0.52006431]
[1760113399773,0.14168429,1229.6,1228.9,0.52006431]
[1760113400073,0.14168429,1229.6,1228.6,0.59065663]
[1760113400278,0.14168429,1229.6,1228.7,0.51993648]
[1760113400472,0.14168429,1229.6,1228.8,0.51993648]
[1760113400672,0.14168429,1229.6,1228.9,0.51993648]
[1760113400977,0.14168429,1229.6,1228.4,0.59065663]
[1760113401174,0.14168429,1229.6,1228.5,0.51998145]
[1760113401474,0.14168429,1229.6,1228.6,0.51998145]
[1760113401675,0.14168429,1229.6,1228.7,0.51998145]
[1760113401878,0.14168429,1229.6,1228.8,0.51998145]
[1760113402075,0.14168429,1229.6,1228.9,0.51998145]
[1760113402273,0.14168429,1229.6,1229.0,0.51998145]
[1760113402478,0.14168429,1229.6,1228.5,0.59065663]
[1760113402677,0.14168429,1229.6,1228.6,0.51859488]
[1760113402878,0.14168429,1229.6,1228.7,0.51859488]
[1760113403076,0.14168429,1229.6,1228.8,0.51859488]
[1760113403281,0.14168429,1229.6,1228.9,0.51859488]
[1760113403479,0.14168429,1229.6,1229.0,0.51859488]
[1760113403679,0.14168429,1229.6,1229.1,0.51859488]
[1760113403877,0.14168429,1229.6,1228.6,0.59065663]
[1760113404077,0.14168429,1229.6,1228.7,0.51767947]
[1760113404278,0.14168429,1229.6,1228.8,0.51767947]
[1760113404479,0.14168429,1229.6,1228.9,0.51767947]
[1760113404676,0.14168429,1229.6,1229.0,0.51767947]
[1760113404876,0.14168429,1229.6,1229.1,0.51767947]
[1760113405176,0.14168429,1229.6,1228.5,0.59065663]
[1760113405477,0.14168429,1229.6,1228.6,0.51711515]
[1760113405675,0.14168429,1229.6,1228.7,0.51711515]
[1760113405975,0.14168429,1229.6,1228.8,1.35111515]
[1760113406179,0.14168429,1229.6,1228.9,0.51711515]
[1760113406376,0.14168429,1229.6,1229.0,0.51711515]
[1760113406580,0.14168429,1229.6,1228.8,0.834]
[1760113406876,0.14168429,1229.6,1228.9,0.51660542]
[1760113407081,0.14168429,1229.6,1229.0,0.51660542]
[1760113407281,0.14168429,1229.6,1228.8,0.834]
[1760113407480,0.14168429,1229.6,1228.9,0.51642506]
[1760113407680,0.14168429,1229.6,1228.8,0.834]
[1760113407681,0.14168429,1229.6,1229.0,0.51642506]
[1760113407981,0.14168429,1229.6,1228.8,0.834]
[1760113408181,0.14168429,1229.6,1228.9,0.51615837]
[1760113408382,0.14168429,1229.6,1228.8,0.834]
[1760113408678,0.14168429,1229.6,1228.9,0.51583945]
[1760113408883,0.14168429,1229.6,1228.8,0.834]
[1760113409081,0.14168429,1229.6,1228.9,0.5159824]
[1760113409382,0.14168429,1229.6,1228.8,0.834]
[1760113409583,0.14168429,1229.6,1228.9,0.5156615]
[1760113409784,0.14168429,1229.6,1228.8,0.834]
[1760113409985,0.14168429,1229.6,1228.9,0.51588331]
[1760113410179,0.14168429,1229.6,1228.8,0.834]
[1760113410381,0.14168429,1229.6,1228.9,0.51531139]
[1760113410579,0.14168429,1229.6,1228.8,0.834]
[1760113410884,0.14168429,1229.6,1228.9,0.51521995]
[1760113411080,0.14168429,1229.6,1228.8,0.834]
[1760113411081,0.14168429,1229.6,1229.0,0.51521995]
[1760113411281,1.1930497,1234.1,1229.1,0.51521995]
[1760113411482,1.1930497,1233.9,1229.2,0.51521995]
[1760113411684,0.14135969,1230.0,1228.8,0.834]
[1760113411884,0.14135969,1230.0,1228.9,0.51483292]
[1760113412181,0.14135969,1230.0,1229.0,0.51483292]
[1760113412381,1.1930497,1234.1,1229.1,0.51483292]
[1760113412680,0.14131492,1231.0,1229.5,0.59065663]
[1760113412884,0.14131492,1231.0,1229.6,0.51483292]
[1760113413079,0.14131492,1231.0,1229.7,1.10548955]
[1760113413283,1.1930497,1235.0,1229.8,0.51483292]
[1760113413480,2.0023786,1235.9,1229.9,0.51483292]
[1760113413682,2.0023786,1235.9,1230.0,0.51483292]
[1760113413881,0.14124322,1233.8,1230.1,0.51483292]
[1760113414080,0.14124322,1233.8,1230.2,0.51483292]
[1760113414280,2.0023786,1236.1,1229.6,0.59065663]
[1760113414485,0.14121227,1233.0,1229.7,0.51572987]
[1760113414781,2.0023786,1236.1,1229.8,0.51572987]
[1760113415081,2.0023786,1236.1,1229.4,0.59065663]
[1760113415082,0.14124838,1232.2,1229.9,0.51557031]
[1760113415280,2.80333,1236.7,1230.0,0.51557031]
[1760113415485,2.80333,1236.7,1229.4,0.59065663]
[1760113415686,0.14119852,1231.7,1229.5,0.51434524]
[1760113415982,2.0023786,1236.9,1229.6,0.51434524]
[1760113416186,0.14120884,1231.2,1229.7,0.51434524]
[1760113416387,0.14120884,1231.2,1229.8,0.51434524]
[1760113416588,2.0023786,1236.9,1229.1,0.59065663]
[1760113416783,0.14120311,1230.9,1229.2,0.51396671]
[1760113416984,0.14120311,1230.9,1229.3,0.51396671]
[1760113417287,2.0023786,1236.8,1229.4,0.51396671]
[1760113417485,0.14122975,1230.7,1229.5,0.51396671]
[1760113417785,2.0023786,1236.3,1229.6,0.51396671]
[1760113417987,0.14124552,1230.6,1229.0,0.59065663]
[1760113418187,2.0023786,1236.1,1229.1,0.51366578]
[1760113418384,2.0023786,1236.5,1229.2,0.51366578]
[1760113418582,2.0023786,1236.5,1229.3,0.51366578]
[1760113418884,0.14126616,1234.4,1229.4,0.51366578]
[1760113419083,2.0023786,1236.6,1229.5,0.51366578]
[1760113419285,0.14122259,1233.2,1229.6,0.51366578]
[1760113419485,0.14122259,1233.2,1229.7,0.51366578]
[1760113419683,0.14122259,1233.2,1229.8,0.51366578]
[1760113419884,0.14122259,1233.2,1228.9,0.59065663]
[1760113420090,0.14122259,1233.2,1229.0,0.51261212]
[1760113420287,0.14122259,1233.2,1229.1,0.51261212]
[1760113420590,0.14122259,1233.2,1229.2,0.51261212]
[1760113420791,0.14122259,1233.2,1229.3,0.51261212]
[1760113421087,0.14122259,1233.2,1229.4,0.51261212]
[1760113421286,0.14122259,1233.2,1229.5,0.51261212]
[1760113421590,0.14122259,1233.2,1229.6,0.51261212]
[1760113421790,0.14122259,1233.2,1229.7,0.51261212]
[1760113422087,0.14122259,1233.2,1229.8,0.51261212]
[1760113422386,0.14122259,1233.2,1229.9,0.51261212]
[1760113422690,0.14122259,1233.2,1230.0,0.51261212]
[1760113422891,0.14122259,1233.2,1229.2,0.59065663]
[1760113423084,0.14122259,1233.2,1229.3,0.51189712]
[1760113423285,0.14122259,1233.2,1229.7,0.59065663]
[1760113423485,0.14122259,1233.2,1229.8,0.51189712]
[1760113423786,0.14122259,1233.2,1229.9,0.51189712]
[1760113423984,0.14122259,1233.2,1230.0,0.51189712]
[1760113424185,0.14122259,1233.2,1230.1,0.51189712]
[1760113424386,0.14122259,1233.2,1230.2,0.51189712]
[1760113424587,0.14122259,1233.2,1229.6,0.59065663]
[1760113424790,0.14122259,1233.2,1229.7,0.51157786]
[1760113424989,0.14122259,1233.2,1229.8,0.51157786]